{"text_format":"1","workbook":"xlsx","n_sheets":1,"sheets":["Sheet1"],"not_rendered":{"charts":0,"images":0,"macros":1,"external_links":0,"defined_names":0,"comments":0,"pivot_tables":0},"unopened":[],"bounds":{"document_bytes":16777216,"sheet_cells":100000,"rows_first":2000,"rows_last":500,"rows_between":2000,"halvings":0,"cell_chars":16384,"cell_head_chars":4096},"cells_cut":0,"cells_raw":0,"read":"whole","date_system":"1900"}

{"sheet":"Sheet1","index":0,"n_rows":37,"n_cols":8,"rows_kept":37,"cut":false,"hidden":false,"merged":[[2,2,2,3],[3,2,3,3],[0,0,0,6],[36,0,36,5],[33,1,33,4],[5,3,5,4]]}
["One-Time SECC CASH/CHECK Donation  Log for Coordinators"]
[]
[null,"Department:"," "]
[null,"Date:"," "]
[]
[null,null,null,"Enter an \"X\" in  Column"]
[null,"Name","Amount","Cash","Check"]
[1," ",null,null,null,null,{"$f":"IF(D8=\"x\",C8,0)","v":0},{"$f":"IF(E8=\"x\",C8,0)","v":0}]
[2," ",null,null,null,null,{"$f":"IF(D9=\"x\",C9,0)","v":0},{"$f":"IF(E9=\"x\",C9,0)","v":0}]
[3," ",null,null,null,null,{"$f":"IF(D10=\"x\",C10,0)","v":0},{"$f":"IF(E10=\"x\",C10,0)","v":0}]
[4," ",null,null,null,null,0,0]
[5," "," "," "," ",null,0,0]
[6," "," "," ",null,null,0,0]
[7," "," "," "," ",null,0,0]
[8," "," ",null," ",null,0,0]
[9," "," ",null," ",null,0,0]
[10," "," "," "," ",null,0,0]
[11," "," ",null," ",null,0,0]
[12,null," "," "," ",null,0,0]
[13,null," ",null," ",null,0,0]
[14,null,null,null,null,null,0,0]
[15,null,null,null,null,null,0,0]
[16,null,null,null,null,null,0,0]
[17,null,null,null,null,null,0,0]
[18,null,null,null,null,null,0,0]
[19,null,null,null,null,null,0,0]
[20,null,null," ",null,null,0,0]
[21,null,null,null,null,null,0,0]
[null,"Total Cash",null,null,null,null,{"$f":"SUM(G8:G28)","v":0},{"$f":"SUM(H8:H28)","v":0}]
[null,"Total Checks"]
[null,"Grand Total"]
[]
[]
[null,"Please verify collected cash/checks received and sign below:"]
[null,"SECC Coordinator Signature:_________________________"]
[]
["(Please bring this form to the Payroll Office at University Towers, Suite 602)"]